lending/lending_fUSD_20250913
["ID","MTS","AMOUNT","RATE_DAILY","PERIOD"]
[385272579,1757723439771,-259.137886,0.00034129,7]
[385272580,1757723439780,-151.0,0.00034129,7]
[385272581,1757723439789,-259.137886,0.00034129,7]
[385272582,1757723439799,-182.137882,0.00034129,7]
[385272583,1757723439810,-259.137886,0.00034129,7]
[385272584,1757723439819,-259.137887,0.00034129,7]
[385272585,1757723439827,-151.0,0.00034129,7]
[385272586,1757723439836,-151.0,0.00034129,7]
[385272587,1757723439847,-160.011904,0.00034129,7]
[385272588,1757723439856,-151.0,0.00034129,7]
[385272589,1757723439867,-151.0,0.00034129,7]
[385272590,1757723439876,-160.011904,0.00034129,7]
[385272591,1757723439885,-151.0,0.00034129,7]
[385272592,1757723439896,-160.011904,0.00034129,7]
[385272593,1757723439905,-151.0,0.00034129,7]
[385272594,1757723439914,-151.0,0.00034129,7]
[385272595,1757723439923,-160.011904,0.00034129,7]
[385272596,1757723439932,-151.0,0.00034129,7]
[385272597,1757723439941,-160.011904,0.00034129,7]
[385272598,1757723439950,-114.24449068,0.00034129,7]
[385272599,1757723439964,-45.76741332,0.00034129,7]
[385272600,1757723439973,-151.0,0.00034129,7]
[385272601,1757723439982,-151.0,0.00034129,7]
[385272603,1757723439991,-151.0,0.00034129,7]
[385272604,1757723440000,-151.0,0.00034129,7]
[385272605,1757723440008,-151.0,0.00034129,7]
[385272606,1757723440017,-151.0,0.00034129,7]
[385272607,1757723440026,-98.0311076,0.00034129,7]
[385272608,1757723440147,-61.9807964,0.00034129,7]
[385272609,1757723440156,-160.011904,0.00034129,7]
[385272610,1757723440166,-160.011904,0.00034129,7]
[385272611,1757723440175,-160.011904,0.00034129,7]
[385272612,1757723440184,-160.011904,0.00034129,7]
[385272613,1757723440193,-160.011894,0.00034129,7]
[385272614,1757723440203,-366.00988011,0.00034129,7]
[385272615,1757723440215,-32.53992689,0.00034129,7]
[385272616,1757723440224,-398.549807,0.00034129,7]
[385272617,1757723440233,-398.549807,0.00034129,7]
[385272618,1757723440242,-113.53757337,0.00034129,7]
[385272619,1757723440253,-285.01223363,0.00034129,7]
[385272620,1757723440262,-398.549807,0.00034129,7]
[385272621,1757723440271,-131.07976509,0.00034129,7]
[385272622,1757723440347,-267.47004191,0.00034129,7]
[385272623,1757723440356,-398.549807,0.00034129,7]
[385272624,1757723440365,-398.549807,0.00034129,7]
[385272625,1757723440377,-398.549807,0.00034129,7]
[385272626,1757723440386,-398.549807,0.00034129,7]
[385272627,1757723440395,-398.549807,0.00034129,7]
[385272628,1757723440404,-398.549815,0.00034129,7]
[385272629,1757723440413,-151.0,0.00034129,7]
[385272630,1757723440422,-151.0,0.00034129,7]
[385272631,1757723440431,-151.0,0.00034129,7]
[385272632,1757723440441,-151.0,0.00034129,7]
[385272633,1757723440450,-151.0,0.00034129,7]
[385272634,1757723440460,-468.638738,0.00034129,7]
[385272635,1757723440470,-151.0,0.00034129,7]
[385272636,1757723440480,-468.638738,0.00034129,7]
[385272637,1757723440490,-468.638738,0.00034129,7]
[385272638,1757723440499,-151.0,0.00034129,7]
[385272639,1757723440508,-151.0,0.00034129,7]
[385272640,1757723440518,-468.638738,0.00034129,7]
[385272641,1757723440527,-151.0,0.00034129,7]
[385272642,1757723440536,-468.638738,0.00034129,7]
[385272643,1757723440545,-468.638738,0.00034129,7]
[385272644,1757723440554,-263.314462,0.00034129,7]
[385272645,1757723440564,-468.638738,0.00034129,7]
[385272646,1757723440573,-468.638738,0.00034129,7]
[385272647,1757723440583,-468.638738,0.00034129,7]
[385272648,1757723440593,-462.06627602,0.00034129,7]
[385272649,1757723440604,-6.57246198,0.00034129,7]
[385272650,1757723440614,-468.638738,0.00034129,7]
[385272651,1757723440625,-468.638736,0.00034129,7]
[385272652,1757723440634,-151.0,0.00034129,7]
[385272653,1757723440644,-151.0,0.00034129,7]
[385272654,1757723440655,-151.0,0.00034129,7]
[385272655,1757723440665,-151.0,0.00034129,7]
[385272656,1757723440674,-151.0,0.00034129,7]
[385272657,1757723440683,-151.0,0.00034129,7]
[385272658,1757723440692,-211.742014,0.00034129,7]
[385272659,1757723440701,-151.0,0.00034129,7]
[385272660,1757723440710,-151.0,0.00034129,7]
[385272661,1757723440719,-151.0,0.00034129,7]
[385272662,1757723440728,-150.0,0.00034151,4]
[385272663,1757723440737,-588.0,0.00034156,2]
[385272664,1757723440748,-500.0,0.00034168,7]
[385272665,1757723440762,-152.09,0.00034218,2]
[385272666,1757723440782,-588.0,0.00034389,7]
[385272667,1757723440799,-539.0,0.00034395,2]
[385272668,1757723440821,-500.0,0.00034418,7]
[385272669,1757723440839,-500.0,0.00034442,7]
[385272670,1757723440855,-803.49,0.00034449,2]
[385272671,1757723440874,-471.6,0.00034449,2]
[385272672,1757723440895,-1027.39,0.00034449,2]
[385272673,1757723440915,-803.49,0.00034449,2]
[385272674,1757723440934,-471.6,0.00034449,2]
[385272675,1757723440954,-803.49,0.00034449,2]
[385272676,1757723440969,-471.6,0.00034449,2]
[385272677,1757723440982,-803.49,0.00034449,2]
[385272678,1757723441001,-471.6,0.00034449,2]
[385272679,1757723441014,-803.49,0.00034449,2]
[385272680,1757723441030,-725.35342195,0.00034449,2]
[385272746,1757723443741,-300.0,0.000199,7]
[385272747,1757723443751,-7708.99629824,0.000249,2]
[385272748,1757723443760,-151.0,0.00030264,7]
[385272749,1757723443769,-151.0,0.00030264,7]
[385272750,1757723443778,-151.0,0.00030264,7]
[385272751,1757723443787,-151.0,0.00030264,7]
[385272753,1757723443796,-151.0,0.00031107,7]
[385272754,1757723443808,-151.0,0.00032203,7]
[385272756,1757723443818,-151.0,0.00032203,7]
[385272758,1757723443828,-886.0,0.0003222,2]
[385272760,1757723443837,-151.0,0.00032401,7]
[385272762,1757723443847,-151.0,0.00034128,7]
[385272764,1757723443856,-151.0,0.00034129,7]
[385272766,1757723443866,-151.0,0.00034129,7]
[385272768,1757723443875,-151.0,0.00034129,7]
[385272770,1757723443887,-261.49248,0.00034129,7]
[385272773,1757723443897,-151.0,0.00034129,7]
[385272775,1757723443907,-255.359848,0.00034129,7]
[385272776,1757723443918,-78.13657805,0.00034449,2]
[385272778,1757723443927,-471.6,0.00034449,2]
[385272780,1757723443936,-471.6,0.00034449,2]
[385272782,1757723443946,-803.49,0.00034449,2]
[385272784,1757723443955,-803.49,0.00034449,2]
[385272786,1757723443964,-803.49,0.00034449,2]
[385272788,1757723443973,-803.49,0.00034449,2]
[385272790,1757723443982,-348.64092934,0.00034496,2]
[385272796,1757723444031,-239.35907066,0.00034496,2]
[385272798,1757723444040,-886.0,0.00034508,2]
[385272800,1757723444049,-14.03992934,0.00034511,2]
[385272922,1757723445190,-274.26881639,0.00030264,7]
[385272925,1757723445202,-152.41815361,0.00030264,7]
[385272927,1757723445211,-244.78295821,0.0003222,2]
[385272977,1757723445740,-426.68697,0.00030264,7]
[385272979,1757723445750,-155.885537,0.00030264,7]
[385272981,1757723445759,-426.68697,0.00031107,7]
[385272983,1757723445768,-426.68697,0.00031107,7]
[385272985,1757723445778,-3142.21704179,0.0003222,2]
[385272987,1757723445787,-426.68697,0.00032401,7]
[385272989,1757723445796,-426.68697,0.00032401,7]
[385272991,1757723445808,-426.68697,0.00034128,7]
[385272993,1757723445818,-426.68697,0.00034128,7]
[385272995,1757723445827,-426.68697,0.00034129,7]
[385272997,1757723445836,-573.96007066,0.00034511,2]
[385272999,1757723445847,-600.0,0.00034542,7]
[385273001,1757723445856,-2525.19393398,0.00034594,2]
[385273004,1757723445868,-474.80606602,0.00034594,2]
[385273005,1757723445880,-277.35679052,0.00034594,2]
[385273008,1757723445889,-300.55,0.00034658,2]
[385273009,1757723445898,-539.0,0.00034669,2]
[385273011,1757723445907,-1214.93204668,0.00034676,2]
[385273013,1757723445917,-436.36205001,0.00034677,2]
[385273016,1757723445927,-588.0,0.00034696,2]
[385273018,1757723445936,-500.0,0.00034716,7]
[385273020,1757723445946,-500.0,0.0003474,5]
[385273022,1757723445955,-471.6,0.00034757,2]
[385273024,1757723445964,-452.83,0.00034757,2]
[385273026,1757723445973,-500.0,0.00034773,5]
[385273028,1757723445982,-500.0,0.00034773,5]
[385273030,1757723445991,-151.0,0.00034773,7]
[385273032,1757723446000,-208.14299406,0.00034773,7]
[385273034,1757723446009,-4087.90566046,0.00034776,2]
[385273063,1757723446217,-500.0,0.00034776,2]
[385273147,1757723447074,-194.35542099,0.00030185,2]
[385273149,1757723447087,-426.68697,0.00030264,7]
[385273151,1757723447096,-14.65000232,0.00030264,7]
[385273270,1757723464887,500.0,0.00021997,120]
[385273271,1757723774519,164.5,0.00016175,2]
[385273272,1757723774732,164.5,0.00017026,2]
[385273273,1757723775202,164.5,0.00017877,2]
[385273274,1757723775495,164.5,0.00018728,2]
[385273275,1757723775591,164.5,0.0001958,2]
[385273276,1757723955691,250.0,0.00015,2]
[385273277,1757723956795,300.0,0.00017,2]
[385273278,1757723957856,350.0,0.00019,2]
[385273279,1757724006188,281.2392826,0.00019732,2]
[385273280,1757724489788,160.0,0.00019732,2]
[385273281,1757724520793,197.2,0.00029808,120]
[385273308,1757724632307,-150.0,0.00020411,7]
[385273310,1757724632317,-164.5,0.00020431,2]
[385273312,1757724632326,-164.5,0.00021282,2]
[385273314,1757724632338,-164.5,0.00022134,2]
[385273316,1757724632348,-164.5,0.00022985,2]
[385273318,1757724632357,-164.5,0.00023836,2]
[385273320,1757724632368,-164.5,0.00024687,2]
[385273322,1757724632377,-500.0,0.00024883,2]
[385273324,1757724632387,-298.10931024,0.00024883,2]
[385273326,1757724632396,-1200.0,0.00024883,2]
[385273328,1757724632405,-322.0,0.00024884,2]
[385273330,1757724632414,-151.0,0.00024885,2]
[385273332,1757724632424,-151.0,0.00024885,2]
[385273334,1757724632433,-151.0,0.00024885,2]
[385273336,1757724632442,-151.0,0.00024885,2]
[385273338,1757724632451,-151.0,0.00024885,2]
[385273340,1757724632460,-151.0,0.00024885,2]
[385273342,1757724632469,-151.0,0.00024885,2]
[385273344,1757724632478,-151.0,0.00024885,2]
[385273346,1757724632488,-31.24125393,0.00024885,2]
[385273351,1757724632529,-119.75874607,0.00024885,2]
[385273353,1757724632538,-151.0,0.00024885,2]
[385273355,1757724632547,-151.0,0.00024885,2]
[385273357,1757724632556,-151.0,0.00024885,2]
[385273359,1757724632566,-151.0,0.00024885,2]
[385273361,1757724632576,-151.0,0.00024885,2]
[385273363,1757724632585,-151.0,0.00024885,2]
[385273365,1757724632595,-151.0,0.00024885,2]
[385273367,1757724632604,-151.0,0.00024885,2]
[385273369,1757724632613,-151.0,0.00024885,2]
[385273371,1757724632623,-151.0,0.00024885,2]
[385273373,1757724632632,-151.0,0.00024885,2]
[385273375,1757724632641,-7472.9319352,0.000249,2]
[385273377,1757724632650,-452.18524958,0.000249,2]
[385273379,1757724632659,-151.0,0.00025,2]
[385273381,1757724632668,-164.5,0.00025539,2]
[385273383,1757724632678,-151.0,0.000258,2]
[385273385,1757724632688,-152.46,0.00026141,2]
[385273387,1757724632698,-164.5,0.0002639,2]
[385273389,1757724632708,-515.48351874,0.00026707,2]
[385273391,1757724632717,-164.5,0.00027241,2]
[385273393,1757724632727,-185.57,0.00027397,2]
[385273395,1757724632736,-150.12276812,0.00027996,2]
[385273397,1757724632746,-151.0,0.00028,2]
[385273399,1757724632755,-164.5,0.00028093,2]
[385273401,1757724632764,-151.0,0.000285,2]
[385273403,1757724632773,-164.5,0.00028944,2]
[385273405,1757724632782,-161.64,0.00029769,2]
[385273407,1757724632791,-164.5,0.00029795,2]
[385273409,1757724632801,-200.0,0.0003,5]
[385273411,1757724632811,-13771.67,0.00030215,2]
[385273413,1757724632820,-500.0,0.00030316,7]
[385273415,1757724632830,-1242.27,0.00030442,2]
[385273417,1757724632840,-301.8,0.00030562,30]
[385273419,1757724632850,-4400.98,0.00030574,2]
[385273421,1757724632859,-500.0,0.0003059,7]
[385273423,1757724632868,-164.5,0.00030646,2]
[385273425,1757724632877,-188.95,0.00030676,2]
[385273427,1757724632888,-257.02392865,0.00030734,2]
[385273429,1757724632897,-250.0,0.00030824,2]
[385273431,1757724632907,-500.0,0.00030841,7]
[385273433,1757724632916,-601.43,0.00030867,3]
[385273435,1757724632925,-335.81,0.00031104,2]
[385273437,1757724632935,-1114.552,0.00031113,28]
[385273439,1757724632944,-156.59,0.00031179,2]
[385273441,1757724632955,-500.0,0.00031183,7]
[385273443,1757724632964,-200.0,0.00031193,2]
[385273444,1757724632974,-505.23,0.00031194,2]
[385273445,1757724632984,-165.92,0.00031241,2]
[385273446,1757724632993,-427.85149818,0.00031271,7]
[385273447,1757724633002,-9793.1,0.00031302,2]
[385273448,1757724633011,-425.82,0.00031313,2]
[385273449,1757724633021,-500.0,0.00031319,7]
[385273450,1757724633031,-500.0,0.00031417,7]
[385273451,1757724633041,-164.5,0.00031498,2]
[385273452,1757724633051,-166.7,0.0003195,2]
[385273453,1757724633061,-151.0,0.00032,5]
[385273454,1757724633071,-600.0,0.00032001,7]
[385273456,1757724633081,-680.2787,0.00032192,10]
[385273458,1757724633090,-164.5,0.00032349,2]
[385273460,1757724633099,-2327.57334501,0.00032349,35]
[385273462,1757724633142,-1540.59665499,0.00032349,35]
[385273463,1757724633151,-600.0,0.00032942,7]
[385273464,1757724633160,-277.35679052,0.00033147,2]
[385273465,1757724633170,-185.57,0.00033165,2]
[385273466,1757724633180,-1190.97,0.00033185,2]
[385273467,1757724633190,-1190.97,0.00033185,2]
[385273468,1757724633199,-1479.83,0.00033185,2]
[385273469,1757724633209,-500.0,0.00033295,7]
[385273470,1757724633218,-600.0,0.00033316,7]
[385273471,1757724633228,-803.49,0.0003349,2]
[385273472,1757724633237,-803.49,0.0003349,2]
[385273473,1757724633247,-803.49,0.0003349,2]
[385273474,1757724633256,-434.76371561,0.0003349,2]
[385273475,1757724633594,-368.72628439,0.0003349,2]
[385273476,1757724633603,-585.72,0.0003349,2]
[385273477,1757724633613,-150.0,0.00033512,7]
[385273478,1757724633623,-961.38609621,0.00033565,7]
[385273479,1757724633633,-150.12276812,0.00033618,2]
[385273480,1757724633642,-602.04485128,0.00033664,2]
[385273481,1757724633653,-981.25297166,0.00033664,2]
[385273482,1757724637671,-505.23,0.00032191,2]
[385273483,1757724637683,-107.49400026,0.00032191,2]
[385273484,1757724637693,-121.30267129,0.00033664,2]
[385273485,1757724637701,-151.0,0.00033715,7]
[385273486,1757724637710,-1262.90332845,0.00033717,2]
[385273498,1757724639722,-421.48223619,0.00033717,2]
[385273499,1757724639880,-1373.61443536,0.00033717,2]
[385273500,1757724639890,-158.171,0.00033718,2]
[385273501,1757724639900,-725.72582414,0.00033718,2]
[385273502,1757724640120,-160.27417586,0.00033718,2]
[385273503,1757724640129,-3387.0,0.00033718,2]
[385273504,1757724640138,-2037.0,0.00033718,2]
[385273505,1757724640147,-1259.0,0.00033718,2]
[385273506,1757724640156,-1579.0,0.00033718,2]
[385273507,1757724640165,-1302.0,0.00033718,2]
[385273508,1757724640174,-568.0,0.00033718,2]
[385273509,1757724640184,-601.0,0.00033718,2]
[385273510,1757724640193,-812.0,0.00033718,2]
[385273512,1757724640202,-2894.42582414,0.00033718,2]
[385273514,1757724640214,-3529.2116422,0.00033718,2]
[385273516,1757724640239,-2152.74619467,0.00033718,2]
[385273517,1757724640251,-297.37679663,0.00033718,2]
[385273518,1757724640262,-1749.6375686,0.00033718,2]
[385273519,1757724640273,-290.04252815,0.00033718,2]
[385273751,1757724646137,-7933.55944561,0.00033718,2]
[385273753,1757724646147,-726.0,0.00033718,2]
[385273755,1757724646156,-4167.0,0.00033718,2]
[385273757,1757724646165,-6171.0,0.00033718,2]
[385273759,1757724646174,-1177.0,0.00033718,2]
[385273761,1757724646185,-12700.3876916,0.00033918,2]
[385273763,1757724646194,-7439.55911814,0.00033918,2]
[385273800,1757724702443,153.54,0.0001687,2]
[385273801,1757724702649,106.63458339,0.00019682,2]
[385273802,1757724702671,46.90541661,0.00019682,2]
[385273803,1757724871298,10000.0,0.00024,30]
[385273804,1757725053358,158.0,0.000301,120]
[385273805,1757725107364,158.0,0.000197,2]
[385273806,1757725134301,160.07,0.000197,2]
[385273807,1757725591617,-208.84898649,0.00022493,2]
[385273808,1757725666956,153.54,0.00015051,2]
[385273809,1757725667119,153.54,0.00018814,2]
[385273810,1757725768074,-179.88480932,0.00022493,2]
[385273811,1757725768096,-137.19193504,0.00022515,2]
[385273812,1757725786459,549.0,0.00030137,120]
[385273817,1757725831958,-112.80806496,0.00022515,2]
[385273818,1757725831968,-151.55,0.00022536,2]
[385273819,1757725831976,-153.54,0.00022576,2]
[385273820,1757725831985,-150.77,0.00022667,2]
[385273821,1757725831994,-150.36,0.00023196,2]
[385273822,1757725832003,-229.670277,0.00024518,2]
[385273823,1757725832012,-250.0,0.00024743,2]
[385273824,1757725832021,-151.0,0.00024885,2]
[385273825,1757725832030,-151.0,0.00024885,2]
[385273826,1757725832039,-151.0,0.00024885,2]
[385273827,1757725832252,-151.0,0.00024885,2]
[385273828,1757725832321,-151.0,0.00024885,2]
[385273829,1757725832331,-541.67796241,0.00024899,2]
[385273830,1757725832340,-300.0,0.00024899,2]
[385273832,1757725832349,-1853.09306637,0.000249,2]
[385273834,1757725832360,-5493.70630519,0.000249,2]
[385273835,1757725832369,-160.45,0.00025,2]
[385273836,1757725832377,-4478.94845545,0.00025258,2]
[385273837,1757725832396,-2502.49080139,0.00025258,2]
[385273839,1757725832405,-157.00360153,0.000257,2]
[385273841,1757725832414,-314.00720307,0.00025867,7]
[385273842,1757725832423,-153.54,0.00026339,2]
[385273843,1757725832431,-420.0,0.00026977,2]
[385273844,1757725832443,-500.0,0.00026986,2]
[385273845,1757725832452,-506.0,0.00027137,2]
[385273846,1757725832462,-167.01,0.00027397,2]
[385273847,1757725832471,-165.92,0.00028316,2]
[385273848,1757725832480,-283.06286034,0.00028604,2]
[385273850,1757725832489,-217.71023061,0.00028748,10]
[385273852,1757725832498,-587.0,0.00029228,2]
[385273854,1757725832506,-276.65,0.0002944,30]
[385273856,1757725832515,-455.10198705,0.00029581,2]
[385273858,1757725832524,-4794.35,0.00029886,2]
[385273859,1757725832532,-153.54,0.00030102,2]
[385273860,1757725832541,-241.14532132,0.00030204,2]
[385273861,1757725832550,-197.18,0.00030239,120]
[385273863,1757725832559,-500.0,0.00030393,7]
[385273864,1757725832567,-500.0,0.00030393,7]
[385273865,1757725832576,-1655.55657294,0.00030665,2]
[385273866,1757725832586,-500.0,0.00030779,2]
[385273867,1757725832595,-500.0,0.00030779,2]
[385273868,1757725832604,-391.76047328,0.00030779,2]
[385273869,1757725832614,-250.0,0.0003081,2]
[385273870,1757725832628,-500.0,0.00031025,7]
[385273871,1757725832638,-500.0,0.00031037,7]
[385273872,1757725832646,-791.3818296,0.00031113,28]
[385273873,1757725832659,-100.2601704,0.00031113,28]
[385273874,1757725832668,-300.82002473,0.00031229,7]
[385273875,1757725832730,-684.96618928,0.00031229,7]
[385273876,1757725832739,-500.0,0.00031264,7]
[385273877,1757725832748,-500.0,0.00031547,7]
[385273878,1757725832757,-308.88791088,0.00031667,2]
[385273879,1757725832768,-514.11208912,0.00031667,2]
[385273880,1757725832777,-500.0,0.00031857,7]
[385273881,1757725832786,-152.0,0.00031933,3]
[385273882,1757725832796,-500.0,0.00032034,7]
[385273883,1757725832805,-25.33913901,0.00032062,7]
[385273884,1757725832950,-474.66086099,0.00032062,7]
[385273885,1757725832960,-2669.65313718,0.00032207,2]
[385273890,1757725837849,-488.66430191,0.00032207,2]
[385273891,1757725837865,-2641.68256091,0.00032207,2]
[385273892,1757725837875,-2383.81965835,0.00032215,2]
[385273893,1757725837921,-358.33485164,0.00032215,2]
[385273894,1757725837978,-385.36424049,0.00032215,2]
[385273895,1757725838038,-521.6,0.00032215,2]
[385273896,1757725838051,-400.99999879,0.00032215,2]
[385273897,1757725838063,-1265.04893029,0.00032215,2]
[385273898,1757725838075,-484.83232044,0.00032215,2]
[385273899,1757725838084,-636.4794564,0.00032223,2]
[385273900,1757725838094,-1938.19685124,0.00032224,2]
[385273901,1757725838105,-1950.77450412,0.00032224,2]
[385273902,1757725838136,-1911.02864464,0.00032224,2]
[385273903,1757725838145,-3865.62607027,0.00032232,2]
[385273904,1757725838157,-270.76107974,0.00032232,2]
[385273916,1757725840624,-585.10791211,0.00032232,2]
[385273917,1757725840635,-309.62611907,0.00032232,2]
[385273918,1757725840647,-396.69899995,0.00032232,2]
[385273919,1757725840658,-362.0499205,0.00032232,2]
[385273920,1757725840724,-10.12989836,0.00032232,2]
[385273921,1757725840734,-500.0,0.00032517,7]
[385273922,1757725840743,-500.0,0.00032768,7]
[385273923,1757725840753,-151.37010164,0.00032806,7]
[385273952,1757725842968,-348.62989836,0.00032806,7]
[385273953,1757725842977,-151.0,0.00032849,7]
[385273954,1757725842986,-151.0,0.00032849,7]
[385273956,1757725842995,-151.0,0.00032849,7]
[385273958,1757725843005,-151.0,0.00032849,7]
[385273959,1757725843014,-277.35679052,0.00032867,2]
[385273960,1757725843024,-157.75,0.00032929,2]
[385273961,1757725843033,-158.0,0.00033,7]
[385273962,1757725843042,-158.0,0.00033,7]
[385273963,1757725843051,-158.0,0.00033,10]
[385273964,1757725843062,-158.0,0.00033,10]
[385273965,1757725843071,-158.0,0.00033,21]
[385273966,1757725843080,-158.0,0.00033,21]
[385273967,1757725843090,-500.0,0.00033057,7]
[385273968,1757725843100,-166.41,0.00033094,2]
[385273969,1757725843110,-167.01,0.00033165,2]
[385273970,1757725843119,-152.0,0.00033177,4]
[385273971,1757725843128,-500.0,0.00033185,7]
[385273972,1757725843373,-52.13540768,0.00033206,7]
[385273973,1757725843478,-1.14045201,0.00033206,7]
[385273974,1757725843489,-446.72414031,0.00033206,7]
[385273975,1757725843498,-500.0,0.00033207,7]
[385273976,1757725843507,-1008.34,0.00033211,2]
[385273977,1757725843517,-4586.0,0.00033479,2]
[385273978,1757725843526,-18847.0,0.00033479,2]
[385273979,1757725843535,-4167.0,0.00033479,2]
[385273980,1757725843545,-6171.0,0.00033479,2]
[385273981,1757725843554,-726.0,0.00033479,2]
[385273982,1757725843563,-174.66,0.00033627,2]
[385273983,1757725843572,-542.41,0.00033627,2]
[385273984,1757725843581,-166.91,0.00033627,2]
[385273985,1757725843590,-150.0,0.00033627,2]
[385273986,1757725843599,-410.6,0.00033627,2]
[385273987,1757725843609,-542.41,0.00033627,2]
[385273988,1757725843619,-174.66,0.00033627,2]
[385273989,1757725843631,-150.0,0.00033627,2]
[385273990,1757725843640,-410.6,0.00033627,2]
[385273991,1757725843649,-214.92,0.00033627,2]
[385273992,1757725843658,-542.41,0.00033627,2]
[385273993,1757725843669,-174.66,0.00033627,2]
[385273994,1757725843678,-1190.97,0.00033627,2]
[385273995,1757725843688,-410.6,0.00033627,2]
[385273996,1757725843699,-166.91,0.00033627,2]
[385273997,1757725843708,-150.0,0.00033627,2]
[385273998,1757725843717,-1190.97,0.00033627,2]
[385273999,1757725843727,-542.41,0.00033627,2]
[385274000,1757725843736,-1190.97,0.00033627,2]
[385274001,1757725843745,-174.66,0.00033627,2]
[385274002,1757725843754,-166.91,0.00033627,2]
[385274003,1757725843764,-410.6,0.00033627,2]
[385274004,1757725843773,-410.6,0.00033627,2]
[385274005,1757725843782,-166.91,0.00033627,2]
[385274006,1757725843791,-542.41,0.00033627,2]
[385274007,1757725843801,-174.66,0.00033627,2]
[385274008,1757725843810,-1190.97,0.00033627,2]
[385274009,1757725843819,-542.41,0.00033627,2]
[385274010,1757725843828,-497.92525788,0.00033627,2]
[385274012,1757725843909,-490.0,0.00033627,2]
[385274093,1757725846042,-203.04474212,0.00033627,2]
[385274094,1757725846051,-174.66,0.00033627,2]
[385274095,1757725846061,-166.91,0.00033627,2]
[385274096,1757725846070,-410.6,0.00033627,2]
[385274097,1757725846079,-235.25581311,0.00033678,2]
[385274098,1757725846090,-4764.74418689,0.00033678,2]
[385274099,1757725846100,-3301.7692009,0.00033702,2]
[385274100,1757725846109,-266.4235958,0.00033717,7]
[385274101,1757725846119,-205.0,0.00033718,2]
[385274102,1757725846128,-200.0,0.00033718,2]
[385274103,1757725846137,-253.0,0.00033718,2]
[385274104,1757725846146,-150.877,0.00033718,2]
[385274105,1757725846155,-150.263,0.00033718,2]
[385274106,1757725846165,-150.162,0.00033718,2]
[385274107,1757725846174,-150.119,0.00033718,2]
[385274108,1757725846184,-297.841,0.00033718,2]
[385274109,1757725846193,-250.0,0.00033718,2]
[385274110,1757725846204,-187.009,0.00033718,2]
[385274111,1757725846214,-206.064,0.00033718,2]
[385274112,1757725846223,-250.0,0.00033718,2]
[385274113,1757725846232,-207.779,0.00033718,2]
[385274114,1757725846241,-151.405,0.00033718,2]
[385274115,1757725846250,-156.0,0.00033718,2]
[385274116,1757725846259,-1259.0,0.00033718,2]
[385274117,1757725846268,-2037.0,0.00033718,2]
[385274118,1757725846278,-886.0,0.00033718,2]
[385274119,1757725846287,-568.0,0.00033718,2]
[385274120,1757725846296,-601.0,0.00033718,2]
[385274121,1757725846305,-1302.0,0.00033718,2]
[385274122,1757725846315,-1579.0,0.00033718,2]
[385274123,1757725846324,-812.0,0.00033718,2]
[385274124,1757725846333,-197.734825,0.00033718,7]
[385274125,1757725846342,-151.0,0.00033718,7]
[385274126,1757725846351,-151.0,0.00033718,7]
[385274127,1757725846360,-150.0,0.00033779,7]
[385274128,1757725846369,-2900.0,0.000338,12]
[385274129,1757725846379,-3081.20365285,0.00033807,2]